Cogmind - Beta 15 @@@ ROGUE MODE // 2025.05.19 @ 20:41:14 Player: jumpy Result: Destroyed by UR-E6T(R) with Subdweller Laser Performance ------------- Evolutions (0) 0 Regions Visited (2) 400 Robots Destroyed (10) 50 Value Destroyed (221) 221 Prototype IDs (0) 0 Alien Tech Used (0) 0 Bonus (-19) -19 TOTAL SCORE: 652 Bonus ------- Friendly Fire -19 Cogmind --------- Core Integrity 0/250 Matter 300/300 Energy 100/100 System Corruption 0% Temperature Cool (6) Movement Core (150) Ox2 Location -10/Subcaves Parts ------- > --- POWER (1) -------- (None) > --- PROPULSION (2) --- (None) > --- UTILITY (2) ------ Small Storage Unit > --- WEAPON (2) ------- Ripper > --- INVENTORY (8) ---- Improved Terrain Scanner Seismic Detector Scrap Shield Assault Rifle Assault Rifle Grenade Launcher Scrap Shield Fragment (47) Peak State ------------ > --- POWER ------------ Ion Engine > --- PROPULSION ------- Light Treads Light Treads > --- UTILITY ---------- Small Storage Unit Seismic Detector > --- WEAPON ----------- Medium Laser Ripper > --- INVENTORY -------- Light Ion Engine Improved Terrain Scanner Seismic Detector Scrap Shield Small Laser Assault Rifle Assault Rifle [Rating: 11] Favorites ----------- Power Ion Engine Engine Ion Engine Propulsion Light Treads Treads Light Treads Utility Small Storage Unit Device Seismic Detector Storage Small Storage Unit Weapon Medium Laser Energy Gun Medium Laser Ballistic Gun Assault Rifle Launcher Grenade Launcher Slashing Weapon Ripper Build | -11 -10 -10 ------- Run | Yrd Mat Sub Slots Evolved . | . . . Power . | . . . Propulsion . | . . . Utility . | . . . Weapon . | . . . Parts Attached 10 | 8 . 2 Power 1 | 1 . . Engine 1 | 1 . . Core . | . . . Reactor . | . . . Propulsion 2 | 2 . . Treads 2 | 2 . . Leg . | . . . Wheel . | . . . Hover . | . . . Flight . | . . . Utility 2 | 2 . . Device 1 | 1 . . Storage 1 | 1 . . Processor . | . . . Hackware . | . . . Protection . | . . . Artifact . | . . . Weapon 5 | 3 . 2 Energy Gun 2 | 2 . . Energy Cannon . | . . . Ballistic Gun 1 | 1 . . Ballistic Cannon . | . . . Launcher 1 | . . 1 Special Weapon . | . . . Impact Weapon . | . . . Slashing Weapon 1 | . . 1 Piercing Weapon . | . . . Special Melee Weapon . | . . . Unidentified Prototypes . | . . . Parts Lost 5 | . . 5 Power 1 | . . 1 Propulsion 2 | . . 2 Utility 1 | . . 1 Weapon 1 | . . 1 Highest Loss Streak 5 | . . 5 To Critical Strikes . | . . . Average Backups 6 | 3 7 6 Power . | . 1 . Propulsion . | 1 2 . Utility 2 | . 2 2 Weapon 2 | . 2 3 Tool/Special . | . . . Unused Backups 7 | . . 7 Power 1 | . . 1 Propulsion 2 | . . 2 Utility 3 | . . 3 Weapon 1 | . . 1 Tool/Special . | . . . Average Slot Usage (%) 99 | . 100 99 Engine 13 | . 14 13 Treads 27 | . 28 27 Device 14 | . 14 14 Storage 14 | . 14 14 Energy Gun 13 | . 14 13 Ballistic Gun 7 | . 14 4 Launcher 1 | . . 1 Slashing Weapon 5 | . . 7 Peak Build Rating 11 | 7 8 11 Average Rating 8 | 5 7 9 On Entrance 5 | . 7 8 Naked Turns . | . . . Heaviest Build 16 | 15 15 16 Greatest Support 40 | 40 40 40 Greatest Overweight (x) 2 | . . 2 Average Overweight (x) . | . . . Largest Inventory Capacity 8 | 8 8 8 Average Capacity 7 | 7 8 8 Most Carried 8 | 6 8 8 Average Carried 7 | 3 7 7 Final Capacity 8 | 8 8 8 Final Carried 8 | 6 8 8 Class Distribution -------------------- 100% | Mutant Dominant Class ---------------- Mutant | -10/Materials Mutant | -10/Subcaves Resources | -11 -10 -10 ----------- Run | Yrd Mat Sub Matter Collected 484 | 328 12 144 Remotely . | . . . Salvage Created 379 | 163 48 168 Parts 23 | 8 4 11 Haulers Intercepted . | . . . Recyclers Shooed . | . . . Parts Field Recycled . | . . . Retrieved Matter . | . . . Parts Self-Destructed 7 | . . 7 Prevented . | . . . Kills | -11 -10 -10 ------- Run | Yrd Mat Sub Combat Hostiles Destroyed 5 | . 1 4 Melee 1 | . . 1 Guns 3 | . 1 2 AOE 1 | . . 1 Classes Destroyed 7 | 2 1 4 Tunneler 3 | 3 . . Recycler 1 | 1 . . Turret 1 | . . 1 Swarmer 1 | . . 1 Grunt 1 | . 1 . Artisan 1 | . . 1 Subdweller 3 | . . 3 Best Kill Streak 1 | 1 1 1 Combat Bots Only 1 | . 1 1 Max Kills in Single Turn 1 | 1 1 1 Gunslinging . | . . . Exploded 1 | . . 1 Melee 1 | . . 1 Uniques/NPCs Destroyed . | . . . Combat | -11 -10 -10 -------- Run | Yrd Mat Sub Hostile Shots Fired 65 | . 4 61 Missed 23 | . 1 22 Hits 42 | . 3 39 Projectile 42 | . 3 39 AOE 6 | . . 6 Critical Strikes 1 | . . 1 Damage Taken 803 | . 65 738 Core 250 | . 15 235 Absorbed by Shields . | . . . Core Remaining (%) 100 | 100 . . Volleys Fired 51 | 16 4 31 Largest 2 | 2 2 2 Hottest 70 | 70 70 70 Shots Fired 89 | 32 8 49 Gun 82 | 32 8 42 Cannon . | . . . Launcher 7 | . . 7 Special . | . . . Kinetic 38 | 16 4 18 Thermal 44 | 16 4 24 Explosive 7 | . . 7 Electromagnetic . | . . . Robot Hit Streak 7 | 3 5 7 Robot Miss Streak 6 | 2 1 6 Penetration Max . | . . . Secondary Targets 1 | . . 1 Max Gunslinging Chain 1 | . . 1 Shots Hit Robots 46 | 18 6 22 Core Hits 17 | 5 2 10 Critical Kills . | . . . Critical Parts Destroyed . | . . . Critical Strikes 3 | 1 . 2 Burn 3 | 1 . 2 Melee Attacks 9 | . . 9 Impact . | . . . Slashing 9 | . . 9 Piercing . | . . . Sneak Attacks 1 | . . 1 Combat Hostiles . | . . . Follow-up Attacks . | . . . Damage Inflicted 709 | 197 74 438 Guns 519 | 197 74 248 Cannons . | . . . Explosions 96 | . . 96 Melee 94 | . . 94 Ramming . | . . . Kinetic 268 | 109 49 110 Thermal 251 | 88 25 138 Explosive 96 | . . 96 Electromagnetic . | . . . Impact . | . . . Slashing 94 | . . 94 Piercing . | . . . Highest Corruption . | . . . Average Corruption . | . . . Corruption Purged . | . . . Corruption Blocked . | . . . Overload Shots . | . . . Overflow Damage 14 | . . 14 Projectiles . | . . . Explosions . | . . . Melee 14 | . . 14 Knockbacks . | . . . Impact . | . . . Kinetic . | . . . Secondary . | . . . Self-Inflicted Damage . | . . . Shots . | . . . Rammed . | . . . Targets Rammed . | . . . Kicked . | . . . Crushed . | . . . Highest Temperature 39 | 27 39 6 Average Temperature 11 | 10 17 3 Received Heat Transfer 216 | . 18 198 Siege Activations . | . . . Martial Activations . | . . . Shielding Activations . | . . . Robots Disrupted . | . . . Combat Hostiles . | . . . Robots Corrupted . | . . . Combat Hostiles . | . . . Parts Fried . | . . . Impact Corruptions . | . . . Robots Melted . | . . . Combat Hostiles . | . . . Parts Melted . | . . . Heat Transferred 962 | 333 74 555 Parts Sabotaged . | . . . Parts Stolen . | . . . Parts Stripped . | . . . Power Chain Reactions . | . . . Alert | -11 -10 -10 ------- Run | Yrd Mat Sub Maximum Alert Level . | . . . Low Security (%) 100 | 100 100 . Level 1 . | . . . Level 2 . | . . . Level 3 . | . . . Level 4 . | . . . Level 5 . | . . . High Security . | . . . Max Security . | . . . Peak Influence 30 | 5 30 . Initial . | . . . Average 1 | . 2 . Influence Increases 166 | 20 31 115 Destroy 0b10 Robot/C 60 | . 20 40 Destroy 0b10 Robot/NC 20 | 20 . . Destroy Leader 10 | . 10 . Destroy Structure 1 | . 1 . Lose Combat Pursuer 75 | . . 75 Influence Decreases 166 | 20 31 115 Time Decay 166 | 20 31 115 Squads Dispatched 1 | . 1 . Investigation . | . . . Extermination . | . . . Reinforcement 1 | . 1 . Assault . | . . . Garrison . | . . . Intercept . | . . . Searches Triggered . | . . . Construction Impeded . | . . . Haulers Reinforced . | . . . Active Scanning Responses . | . . . Cargo Convoy Interrupts . | . . . Stealth | -11 -10 -10 --------- Run | Yrd Mat Sub Distress Signals . | . . . Communications Jammed . | . . . Distress Signals . | . . . Times Spotted 17 | . 2 15 Peak Tracking Total 5 | . 1 5 Tactical Retreats 2 | . . 2 Traps | -11 -10 -10 ------- Run | Yrd Mat Sub Traps Triggered 1 | . 1 . Indirectly . | . . . Trap Hack Attempts . | . . . Triggered . | . . . Disarmed . | . . . Reprogrammed . | . . . Reused . | . . . Traps Extracted . | . . . Installed . | . . . Triggered . | . . . Machines | -11 -10 -10 ---------- Run | Yrd Mat Sub Machines Disabled . | . . . Max in Single Turn . | . . . Machines Repaired . | . . . Machines Dismantled . | . . . Machines Sabotaged . | . . . Overloaded Fab Kills . | . . . Hacking | -11 -10 -10 --------- Run | Yrd Mat Sub Machines Accessed . | . . . Terminals . | . . . Fabricators . | . . . Repair Stations . | . . . Recycling Units . | . . . Scanalyzers . | . . . Garrison Access . | . . . Total Hacks . | . . . Successful . | . . . Failed . | . . . Catastrophic . | . . . Database Lockouts . | . . . Manual . | . . . Terminals . | . . . Fabricators . | . . . Repair Stations . | . . . Recycling Units . | . . . Scanalyzers . | . . . Garrison Access . | . . . Terminal Hacks . | . . . Fabricator Hacks . | . . . Repair Station Hacks . | . . . Recycling Unit Hacks . | . . . Scanalyzer . | . . . Garrison Access Hacks . | . . . Unauthorized Hacks . | . . . Terminals . | . . . Fabricators . | . . . Repair Stations . | . . . Recycling Units . | . . . Scanalyzers . | . . . Garrison Access . | . . . Data Cores Recovered . | . . . Used . | . . . Hacking Detections . | . . . Full Trace Events . | . . . Feedback Events . | . . . Feedback Blocked . | . . . Robot Schematics Acquired . | . . . Robots Built . | . . . Authchips . | . . . Time . | . . . Total Robot Build Rating . | . . . Part Schematics Acquired . | . . . Parts Built . | . . . Authchips . | . . . Time . | . . . Total Part Build Rating . | . . . Parts Repaired . | . . . Time . | . . . Parts Recycled . | . . . Recycled Matter . | . . . Retrieved Matter . | . . . Retrieved Components . | . . . Parts Scanalyzed . | . . . Part Schematics Acquired . | . . . Parts Damaged . | . . . Bothacking | -11 -10 -10 ------------ Run | Yrd Mat Sub Used RIF Installer . | . . . Robots Hacked . | . . . Non-combat . | . . . Combat . | . . . Robot Hacks Applied . | . . . Relay Couplers Released . | . . . Fabnet Peak Effective % . | . . . Robots Rewired . | . . . Allies Hacked . | . . . Hacks Repelled . | . . . Allies | -11 -10 -10 -------- Run | Yrd Mat Sub Total Allies . | . . . Largest Group . | . . . Highest-Rated Group . | . . . Highest-Rated Ally . | . . . Total Orders . | . . . Ally Attacks . | . . . Total Damage . | . . . Kills . | . . . Allies Corrupted . | . . . Allies Melted . | . . . Intel | -11 -10 -10 ------- Run | Yrd Mat Sub Active Infowar (turns) 1395 | 90 333 972 Seismic 1395 | 90 333 972 Robot Analysis Total . | . . . Derelict Logs Recovered 1 | . . 1 Drone Launches . | . . . Drone Recoveries . | . . . Exploration | -11 -10 -10 ------------- Run | Yrd Mat Sub Turns Passed 1564 | 254 333 977 Spaces Moved 819 | 120 160 539 Core 7 | 3 . 4 Treads 812 | 117 160 535 Legs . | . . . Wheels . | . . . Hover . | . . . Flight . | . . . Fastest Speed 50 | 50 160 150 Average Speed 159 | 157 160 159 Slowest Speed 160 | 160 160 160 Overloaded Moves . | . . . Propulsion Burnouts . | . . . Robots Hopped . | . . . Potential Cave-ins . | . . . Cave-ins Triggered . | . . . Exploration Rate (%) 25 | 8 33 34 Regions Visited 2 Branch Regions 1 Pre-discovered Areas . | . . . Known Exits Taken . | . . . Unknown Exits Taken 2 | 1 1 . Scrap Searched . | . . . Spaces Dug 2 | . . 2 Terrain Destroyed 54 | . . 54 Melee 2 | . . 2 Projectile . | . . . AOE 52 | . . 52 Terrain Rammed . | . . . Walls Destroyed . | . . . Machines Disabled . | . . . Actions | -11 -10 -10 --------- Run | Yrd Mat Sub Total 970 | 149 229 592 Wait 68 | . 64 4 Move 817 | 119 159 539 Hop . | . . . Pick Up 11 | 6 2 3 Fast Attach 7 | 7 . . Attach . | . . . Detach . | . . . Swap 3 | 1 . 2 Drop 4 | . . 4 Fire 51 | 16 4 31 Melee 9 | . . 9 Ram . | . . . Kick . | . . . Crush . | . . . Escape Stasis . | . . . Rewire . | . . . Trap . | . . . Miscellaneous . | . . . Route ------- -11/Scrapyard -10/Materials (discovered 2 exits: [*Mat] / [*Sub]) -10/Subcaves (discovered 1 exit: [*Rec]) History --------- Turn | Location | Event 8 | -11/Scrapyard | Discovered new exit (range 15) 255 | -11/Scrapyard | Entered Materials 313 | -10/Materials | Build established: Mutant 453 | -10/Materials | Discovered new exit (range 5) 565 | -10/Materials | Discovered new exit (range 8) 588 | -10/Materials | Entered Subcaves 588 | -10/Subcaves | Learned Materials stockpile data 589 | -10/Subcaves | Approached by a straggling Scientist 611 | -10/Subcaves | Discovered new exit (range 13) 870 | -10/Subcaves | Shifting Twisted Machinery released Sub. Laser 921 | -10/Subcaves | Shifting Twisted Machinery released Ripper 950 | -10/Subcaves | Ambushed by Subdweller buried in earth 1354 | -10/Subcaves | A swath of the cavern ceiling suddenly collapsed 1453 | -10/Subcaves | Ambushed by angry Subdweller bent on revenge 1552 | -10/Subcaves | Ambushed by Subdweller buried in earth 1555 | -10/Subcaves | Core integrity fell below 50% 1563 | -10/Subcaves | Core integrity fell below 20% 1565 | -10/Subcaves | Destroyed by UR-E6T(R) with Subdweller Laser Last Messages --------------- 01453_ 7B-ZEZ(R) angrily emerges from the Twisted Machinery. 01453_ 7B-ZEZ(R): "WEHOME!" 01456_ 7B-ZEZ(R) destroyed. 01459_ Acquired 34 matter. 01465_ Acquired 16 matter. 01543_ HV Slug penetrates Wall. 01543_ 1C-NGX(R) suffers critical hit (Destroy). 01545_ Z8-82L(h) suffers critical hit (Burn). 01546_ HV Slug penetrates 1C-NGX(R). 01546_ 1C-NGX(R) knocked back. 01549_ HV Slug penetrates 1C-NGX(R). 01549_ 1C-NGX(R) knocked back. 01550_ Z8-82L(h) destroyed. 01552_ Lgt. Treads destroyed. 01552_ Ion Engine destroyed. 01553_ NG-J4W(R): "ARGHSUB!" 01557_ Med. Laser destroyed. 01558_ Lgt. Treads destroyed. 01560_ Seismic Detector destroyed. 01561_ 1C-NGX(R) destroyed. Map ----- +----------------------------------------------------+ | | | ?????????????????????????????????????????????????? | | ?????????????????????????????????????????????????? | | ?????????????????????????????????????????????????? | | ?????????????????????????????????????????????????? | | ?????????????????????????????????????????????????? | | ?????????????????????????????????????????????????? | | ?????????????????????????????????????????????????? | | ?????????????????????????????????????????????????? | | ?????????????????????????????????????????????????? | | ?????????????????????????????????????????????????? | | ?????????????????????????????????????????????????? | | ?????????????????????????????????????????????????? | | ?????????????????????????????????????????????????? | | ?????????????????????????????????????????????????? | | ####?????????????????????????????????????????????? | | # ##############????????????????????????????????? | | "#????????????????????????????????? | | " "###???????????????????????????????? | | # ## #"""""#""####????????????????????????????? | | ###### """###"##""""#????????????????????????????? | | ?????#####"########"#????????????????????????????? | | ??????????"#??##"""##???????##???????????????????? | | ??????????"#??#""""#??######;#???##??????????????? | | ??????????#""""#;;;####;;;; ## #??????????????? | | ??????????#"## ## #;; ; @= R #??????????????? | | ???????????###"# & ;## ????????? | | ????????????# ; ;#????????????????????? | | ??????????#"## ; ;#???????????????????? | | ??????????#;;; ; ;;#???????????????????? | | ??????????#### ;##???????????????????? | | ??????????#";; ; #????????????????????? | | ??????????##;# R ##????????????????????? | | ???????????#"; ; #?????????????????????? | | ???????????#"#; #?????????????????????? | | ???????????### = ;;; ##?????????????????????? | | ??????????## [ ;;######??????????????????????? | | ?????????## #????????????????????????????? | | ?????##### #???????????????????????????? | | ?????#"# # #??????????????????????????? | | ??#### #### #?????????????????????????? | | ??# ##??#########?????????????????????????? | | ??# #?????????????????????????????????????? | | ??## #?????????????????????????????????????? | | ???## #?????????????????????????????????????? | | ???# #?????????????????????????????????????? | | #??# # #?????????????????????????????????? | | #?## ### #?????????????????????????????????? | | ### ### #?????????????????????????????????? | | & ##??# ????????????????????????????????? | +----------------------------------------------------+ Best States ------------- Heat Dissipation 25 Energy Generation 10 Energy Capacity 250 Matter Stores 300 Matter Capacity 300 Sight Range 16 Terrain Scan Density 10 Evasion (%) 40 Recoil Reduction 2 Item Schematics ----------------- None Robot Schematics ------------------ None Fabricated ------------ Nothing Repaired ---------- Nothing Alien Tech Used ----------------- None Achievements -------------- None Challenges ------------ None Game ------ Seed AntigravEfficiencyMachine Manual? 0 Play Time 00:09:14 Cumulative 102.0 hours Start 2025.05.19 @ 20:31:48 End 2025.05.19 @ 20:41:14 Sessions 1 Manual Loads 0 Difficulty Rogue Special Mode None Game No. 266 Rogue 266 Adventurer 0 Explorer 0 Win Type - Total 2 Types 2/0/0/0/0/0/0/0/0/0 Lore% 49 Gallery% 49 Achievement% 41 Wizard Run 0 Options --------- Layout 0 ASCII 0 Keyboard 0 Movement Numpad Keybinds 0 Fullscreen 2 Font 18/Terminus Map View 76x50 Zoom Use 0% Tactical HUD 1 Map Filters NONE Filters NONE Steam 1 RUN: 32f47086-abca-427f-b63f-0d9e5620462b